fUSD/lending_fUSD_20260628
["ID","MTS","AMOUNT","RATE_DAILY","PERIOD"]
[426595767,1782653432000,-151.0,0.00014439,2]
[426595753,1782653432000,-500.0,0.00014339,2]
[426595770,1782653432000,-151.0,0.00014439,2]
[426595788,1782653437000,281.71,0.00031422,120]
[426595787,1782653437000,281.71,0.00031176,120]
[426595797,1782653438000,-8839.4651155,0.00014724,2]
[426595798,1782653438000,-3897.07307349,0.00014724,2]
[426595799,1782653438000,-18549.71018159,0.00014724,2]
[426595796,1782653438000,-1786.00973209,0.00014724,2]
[426595814,1782653440000,-956.0530461,0.000149,2]
[426595808,1782653440000,-5019.23627687,0.00014865,2]
[426595804,1782653440000,-19285.92345622,0.00014724,2]
[426595807,1782653440000,-300.0,0.00014862,2]
[426595809,1782653440000,-200.0,0.0001488,2]
[426595803,1782653440000,-16231.1091,0.00014328,2]
[426595810,1782653440000,-2500.0,0.00014899,2]
[426595811,1782653440000,-800.0,0.000149,5]
[426595806,1782653440000,-486.95,0.00014855,2]
[426595812,1782653440000,-1467.49014398,0.000149,2]
[426595813,1782653440000,-155.58666158,0.000149,2]
[426595805,1782653440000,-400.0,0.000148,5]
[426595815,1782653440000,-604.75428822,0.00014917,2]
[426595816,1782653440000,-500.0,0.00014964,2]
[426595827,1782653440000,-508.57397179,0.00014999,2]
[426595825,1782653440000,-500.0,0.00014997,2]
[426595824,1782653440000,-500.0,0.00014997,2]
[426595820,1782653440000,-905.0,0.0001497,2]
[426595826,1782653440000,-6148.8154048,0.00014998,2]
[426595823,1782653440000,-500.0,0.00014975,2]
[426595821,1782653440000,-893.0,0.00014972,2]
[426595819,1782653440000,-909.0,0.00014969,2]
[426595817,1782653440000,-70442.7222668,0.00014965,2]
[426595818,1782653440000,-1792.7361478,0.00014965,2]
[426595822,1782653440000,-888.0,0.00014972,2]
[426595871,1782653441000,-9999.99,0.00016116,2]
[426595865,1782653441000,-183.87517246,0.00015797,2]
[426595863,1782653441000,-500.0,0.00015523,2]
[426595868,1782653441000,-424.24749189,0.00016,2]
[426595864,1782653441000,-1500.0,0.0001579,2]
[426595870,1782653441000,-424.24749189,0.000161,2]
[426595866,1782653441000,-2280.85907181,0.00015807,2]
[426595861,1782653441000,-500.0,0.00015249,2]
[426595862,1782653441000,-255.0,0.00015406,2]
[426595869,1782653441000,-210.93,0.0001604,2]
[426595853,1782653441000,-2093.0,0.00015,2]
[426595867,1782653441000,-300.0,0.00016,2]
[426595872,1782653441000,-424.24749189,0.000162,2]
[426595883,1782653441000,-10000.0,0.00016698,2]
[426595874,1782653441000,-435.04017217,0.00016287,2]
[426595876,1782653441000,-1500.0,0.00016338,2]
[426595879,1782653441000,-200.48,0.00016482,2]
[426595875,1782653441000,-427.91975185,0.00016304,2]
[426595859,1782653441000,-160.0,0.00015113,2]
[426595878,1782653441000,-450.29,0.00016438,2]
[426595877,1782653441000,-200.0,0.0001634,2]
[426595882,1782653441000,-337.0,0.0001662,2]
[426595880,1782653441000,-1000.0,0.000165,2]
[426595881,1782653441000,-486.95,0.00016506,2]
[426595884,1782653441000,-172.02,0.00016712,2]
[426595885,1782653441000,-679.30363089,0.00016734,2]
[426595890,1782653441000,-509.50452958,0.00017391,2]
[426595873,1782653441000,-160.0,0.00016266,2]
[426595858,1782653441000,-450.29,0.00015068,2]
[426595852,1782653441000,-151.0,0.00015,2]
[426595850,1782653441000,-151.0,0.00015,2]
[426595895,1782653441000,-2834.5900562,0.00017544,2]
[426595828,1782653441000,-500.0,0.00014999,2]
[426595834,1782653441000,-500.0,0.00014999,2]
[426595833,1782653441000,-500.0,0.00014999,2]
[426595832,1782653441000,-500.0,0.00014999,2]
[426595835,1782653441000,-384.96058551,0.00014999,2]
[426595831,1782653441000,-500.0,0.00014999,2]
[426595829,1782653441000,-500.0,0.00014999,2]
[426595837,1782653441000,-633.3,0.00014999,2]
[426595836,1782653441000,-500.0,0.00014999,2]
[426595839,1782653441000,-151.0,0.00014999,2]
[426595840,1782653441000,-151.0,0.00014999,2]
[426595841,1782653441000,-151.0,0.00014999,2]
[426595846,1782653441000,-737.0,0.00015,5]
[426595838,1782653441000,-151.0,0.00014999,2]
[426595843,1782653441000,-151.0,0.00015,2]
[426595842,1782653441000,-151.0,0.00014999,2]
[426595847,1782653441000,-96419.90159962,0.00015,2]
[426595845,1782653441000,-921.0,0.00015,5]
[426595844,1782653441000,-151.0,0.00015,2]
[426595848,1782653441000,-816063.46277683,0.00015,2]
[426595849,1782653441000,-429.80928763,0.00015,2]
[426595860,1782653441000,-2001.2922711,0.00015136,2]
[426595855,1782653441000,-167.42990077,0.00015,2]
[426595854,1782653441000,-167.0,0.00015,2]
[426595856,1782653441000,-859.40324584,0.00015009,2]
[426595851,1782653441000,-153.86009179,0.00015,2]
[426595857,1782653441000,-9927.95479578,0.00015042,2]
[426595888,1782653441000,-956.05304609,0.000169,2]
[426595830,1782653441000,-500.0,0.00014999,2]
[426595896,1782653441000,-2834.5900562,0.00017577,2]
[426595923,1782653441000,-1500.0,0.0001853,2]
[426595926,1782653441000,-250.0,0.00018916,2]
[426595924,1782653441000,-5019.23627679,0.00018873,2]
[426595927,1782653441000,-479.8230108,0.00019,2]
[426595928,1782653441000,-2422.21258249,0.00019,2]
[426595930,1782653441000,-741.0,0.00019,2]
[426595929,1782653441000,-598.0,0.00019,2]
[426595933,1782653441000,-166.0,0.00019,2]
[426595931,1782653441000,-174.0,0.00019,2]
[426595925,1782653441000,-956.05304609,0.000189,2]
[426595932,1782653441000,-428.0,0.00019,2]
[426595934,1782653441000,-153.0,0.00019,2]
[426595935,1782653441000,-866.0,0.00019,2]
[426595943,1782653441000,-401.79021505,0.000194,2]
[426595937,1782653441000,-171.0,0.00019,2]
[426595941,1782653441000,-7126.33754789,0.000194,2]
[426595944,1782653441000,-154.54717576,0.000194,2]
[426595942,1782653441000,-6619.33650464,0.000194,2]
[426595938,1782653441000,-154.0,0.00019,2]
[426595940,1782653441000,-3570.83573662,0.000194,2]
[426595936,1782653441000,-163.0,0.00019,2]
[426595946,1782653441000,-7126.33754789,0.000196,2]
[426595939,1782653441000,-1500.0,0.00019078,2]
[426595945,1782653441000,-3570.83573662,0.000196,2]
[426595947,1782653441000,-6619.33650464,0.000196,2]
[426595949,1782653441000,-1500.0,0.00019626,2]
[426595948,1782653441000,-401.79021505,0.000196,2]
[426595922,1782653441000,-358.81907126,0.0001843,2]
[426595921,1782653441000,-90071.63,0.00018356,2]
[426595893,1782653441000,-1088.31164845,0.00017496,2]
[426595918,1782653441000,-214.32310975,0.00018015,2]
[426595920,1782653441000,-486.95,0.00018156,2]
[426595891,1782653441000,-1500.0,0.00017434,2]
[426595886,1782653441000,-5019.23627679,0.00016869,2]
[426595887,1782653441000,-1500.0,0.00016886,2]
[426595889,1782653441000,-518.40742528,0.00017358,2]
[426595894,1782653441000,-2834.5900562,0.00017529,2]
[426595892,1782653441000,-1088.31164845,0.00017476,2]
[426595898,1782653441000,-7470.48371863,0.00017634,2]
[426595900,1782653441000,-7470.48371863,0.00017653,2]
[426595899,1782653441000,-2834.5900562,0.00017651,2]
[426595904,1782653441000,-1088.31164845,0.00017662,2]
[426595901,1782653441000,-2834.5900562,0.00017658,2]
[426595903,1782653441000,-2834.5900562,0.00017662,2]
[426595902,1782653441000,-2834.5900562,0.0001766,2]
[426595897,1782653441000,-2834.5900562,0.00017591,2]
[426595909,1782653441000,-2834.5900562,0.00017723,2]
[426595905,1782653441000,-9990.13266116,0.00017665,2]
[426595914,1782653441000,-363.76,0.00017785,2]
[426595912,1782653441000,-2834.5900562,0.00017754,2]
[426595917,1782653441000,-350.0,0.00018,2]
[426595919,1782653441000,-1467.49014396,0.00018041,2]
[426595916,1782653441000,-1500.0,0.00017982,2]
[426595913,1782653441000,-736.46742715,0.00017765,2]
[426595915,1782653441000,-1244.47411513,0.0001789,2]
[426595911,1782653441000,-2834.5900562,0.00017749,2]
[426595907,1782653441000,-1088.31164845,0.00017698,2]
[426595906,1782653441000,-10000.0,0.0001769,2]
[426595908,1782653441000,-796.27581976,0.000177,2]
[426595910,1782653441000,-736.46742715,0.00017726,2]
[426595988,1782653442000,-151.0,0.00020722,2]
[426595991,1782653442000,-151.0,0.00020722,2]
[426595992,1782653442000,-151.0,0.00020722,2]
[426595987,1782653442000,-500.0,0.00020722,2]
[426595982,1782653442000,-2118.5825,0.00020548,2]
[426595983,1782653442000,-3570.83573662,0.000206,2]
[426595986,1782653442000,-174.3991004,0.00020722,2]
[426595990,1782653442000,-151.0,0.00020722,2]
[426595984,1782653442000,-7126.33754789,0.000206,2]
[426595989,1782653442000,-454.58204241,0.00020722,2]
[426595994,1782653442000,-151.0,0.00020722,2]
[426595985,1782653442000,-6619.33650464,0.000206,2]
[426595996,1782653442000,-151.0,0.00020722,2]
[426596020,1782653442000,-598.0,0.00021,2]
[426596007,1782653442000,-151.0,0.00020722,2]
[426596006,1782653442000,-151.0,0.00020722,2]
[426595997,1782653442000,-151.0,0.00020722,2]
[426596000,1782653442000,-151.0,0.00020722,2]
[426595999,1782653442000,-151.0,0.00020722,2]
[426595998,1782653442000,-151.0,0.00020722,2]
[426596005,1782653442000,-151.0,0.00020722,2]
[426596004,1782653442000,-151.0,0.00020722,2]
[426596002,1782653442000,-1500.0,0.00020722,2]
[426596003,1782653442000,-151.0,0.00020722,2]
[426596001,1782653442000,-151.0,0.00020722,2]
[426596008,1782653442000,-151.0,0.00020722,2]
[426595993,1782653442000,-151.0,0.00020722,2]
[426595995,1782653442000,-151.0,0.00020722,2]
[426595978,1782653442000,-3570.83573662,0.000204,2]
[426595967,1782653442000,-166.0,0.0002,2]
[426595976,1782653442000,-6619.33650464,0.000202,2]
[426596010,1782653442000,-1344.85406611,0.00020722,2]
[426595955,1782653442000,-4960.9915,0.000199,2]
[426595957,1782653442000,-1169.55662899,0.0002,2]
[426595952,1782653442000,-6619.33650464,0.000198,2]
[426595953,1782653442000,-401.79021505,0.000198,2]
[426595951,1782653442000,-7126.33754789,0.000198,2]
[426595950,1782653442000,-3570.83573662,0.000198,2]
[426595956,1782653442000,-352.6257707,0.0002,3]
[426595954,1782653442000,-486.95,0.00019807,2]
[426595959,1782653442000,-598.0,0.0002,2]
[426595960,1782653442000,-741.0,0.0002,2]
[426595963,1782653442000,-6619.33650464,0.0002,2]
[426595964,1782653442000,-401.79021505,0.0002,2]
[426595981,1782653442000,-165.11,0.00020431,2]
[426595962,1782653442000,-7126.33754789,0.0002,2]
[426595961,1782653442000,-3570.83573662,0.0002,2]
[426595969,1782653442000,-866.0,0.0002,2]
[426595968,1782653442000,-153.0,0.0002,2]
[426595965,1782653442000,-174.0,0.0002,2]
[426595966,1782653442000,-428.0,0.0002,2]
[426595971,1782653442000,-853.0,0.0002,2]
[426595973,1782653442000,-1500.0,0.00020174,2]
[426595974,1782653442000,-3570.83573662,0.000202,2]
[426595972,1782653442000,-154.0,0.0002,2]
[426595975,1782653442000,-7126.33754789,0.000202,2]
[426595980,1782653442000,-6619.33650464,0.000204,2]
[426595977,1782653442000,-401.79021505,0.000202,2]
[426595979,1782653442000,-7126.33754789,0.000204,2]
[426595970,1782653442000,-90000.0,0.0002,2]
[426595958,1782653442000,-400.0,0.0002,2]
[426596013,1782653442000,-5019.23627679,0.00020877,2]
[426596011,1782653442000,-760.67160943,0.00020849,2]
[426596037,1782653442000,-1500.0,0.0002127,2]
[426596061,1782653442000,-168.514,0.0002209,2]
[426596058,1782653442000,-175.33,0.00022,2]
[426596062,1782653442000,-150.199,0.0002209,2]
[426596051,1782653442000,-598.0,0.00022,2]
[426596057,1782653442000,-866.0,0.00022,2]
[426596053,1782653442000,-174.0,0.00022,2]
[426596060,1782653442000,-249.242,0.0002209,2]
[426596048,1782653442000,-450.0,0.00022,2]
[426596055,1782653442000,-166.0,0.00022,2]
[426596056,1782653442000,-153.0,0.00022,2]
[426596054,1782653442000,-428.0,0.00022,2]
[426596052,1782653442000,-741.0,0.00022,2]
[426596035,1782653442000,-520.16865279,0.0002127,2]
[426596059,1782653442000,-250.0,0.0002209,2]
[426596064,1782653442000,-454.58204241,0.00022366,2]
[426596065,1782653442000,-1500.0,0.00022366,2]
[426596067,1782653442000,-1576.55,0.00022466,2]
[426596066,1782653442000,-1871.17,0.00022466,2]
[426596071,1782653442000,-5019.23627679,0.00022881,2]
[426596074,1782653442000,-1500.0,0.00022914,2]
[426596075,1782653442000,-598.0,0.00023,2]
[426596072,1782653442000,-956.05304609,0.000229,2]
[426596063,1782653442000,-454.58204241,0.00022092,2]
[426596073,1782653442000,-454.58204241,0.00022914,2]
[426596068,1782653442000,-395.23,0.00022466,2]
[426596069,1782653442000,-454.58204241,0.0002264,2]
[426596009,1782653442000,-151.0,0.00020722,2]
[426596070,1782653442000,-279.94420387,0.00022867,7]
[426596040,1782653442000,-6619.33650464,0.000213,2]
[426596076,1782653442000,-741.0,0.00023,2]
[426596041,1782653442000,-358.81907126,0.00021324,2]
[426596045,1782653442000,-5000.0,0.00021918,2]
[426596018,1782653442000,-956.05304609,0.000209,2]
[426596017,1782653442000,-1300.0,0.000209,7]
[426596014,1782653442000,-3570.83573662,0.000209,2]
[426596016,1782653442000,-6619.33650464,0.000209,2]
[426596015,1782653442000,-7126.33754789,0.000209,2]
[426596019,1782653442000,-454.58204241,0.00020996,2]
[426596021,1782653442000,-741.0,0.00021,2]
[426596023,1782653442000,-428.0,0.00021,2]
[426596022,1782653442000,-174.0,0.00021,2]
[426596033,1782653442000,-6619.33650464,0.000211,2]
[426596024,1782653442000,-166.0,0.00021,2]
[426596028,1782653442000,-181.11671621,0.0002107,2]
[426596025,1782653442000,-153.0,0.00021,2]
[426596012,1782653442000,-187.13595971,0.00020867,7]
[426596029,1782653442000,-237.76,0.00021082,2]
[426596038,1782653442000,-3570.83573662,0.000213,2]
[426596042,1782653442000,-454.58204241,0.00021544,2]
[426596036,1782653442000,-454.58204241,0.0002127,2]
[426596044,1782653442000,-1500.0,0.00021818,2]
[426596026,1782653442000,-866.0,0.00021,2]
[426596039,1782653442000,-7126.33754789,0.000213,2]
[426596043,1782653442000,-454.58204241,0.00021818,2]
[426596047,1782653442000,-25944.84883163,0.00022,4]
[426596034,1782653442000,-1467.49014396,0.00021182,2]
[426596032,1782653442000,-7126.33754789,0.000211,2]
[426596030,1782653442000,-161.3,0.00021082,2]
[426596031,1782653442000,-3570.83573662,0.000211,2]
[426596027,1782653442000,-2995.03296192,0.00021,2]
[426596046,1782653442000,-160.64879448,0.00022,2]
[426596126,1782653443000,-500.0,0.00024657,2]
[426596124,1782653443000,-1500.0,0.00024558,2]
[426596131,1782653443000,-500.0,0.00024657,2]
[426596125,1782653443000,-500.0,0.00024657,2]
[426596128,1782653443000,-500.0,0.00024657,2]
[426596121,1782653443000,-262.23555103,0.00024393,7]
[426596122,1782653443000,-175.33,0.00024557,7]
[426596120,1782653443000,-1467.49014396,0.00024323,2]
[426596129,1782653443000,-500.0,0.00024657,2]
[426596130,1782653443000,-500.0,0.00024657,2]
[426596127,1782653443000,-500.0,0.00024657,2]
[426596123,1782653443000,-454.58204241,0.00024558,2]
[426596132,1782653443000,-286.54,0.00024658,2]
[426596145,1782653443000,-177.60620837,0.00024981,2]
[426596134,1782653443000,-157.43,0.00024658,2]
[426596137,1782653443000,-454.58204241,0.00024832,2]
[426596144,1782653443000,-182.54572843,0.00024981,2]
[426596141,1782653443000,-603.74,0.00024961,7]
[426596146,1782653443000,-205.79946857,0.00024981,2]
[426596135,1782653443000,-157.44,0.00024658,2]
[426596138,1782653443000,-5019.23627679,0.00024884,2]
[426596136,1782653443000,-262.23555103,0.00024683,7]
[426596140,1782653443000,-266.17,0.00024961,7]
[426596143,1782653443000,-262.23555103,0.00024973,14]
[426596142,1782653443000,-1206.15,0.00024961,7]
[426596153,1782653443000,-301.2676326,0.00024981,2]
[426596114,1782653443000,-262.23555103,0.00024103,2]
[426596133,1782653443000,-1000.0,0.00024658,2]
[426596111,1782653443000,-454.58204241,0.0002401,2]
[426596099,1782653443000,-150.6338163,0.00023721,2]
[426596108,1782653443000,-171.0,0.00024,2]
[426596077,1782653443000,-174.0,0.00023,2]
[426596093,1782653443000,-178.6909002,0.00023721,2]
[426596095,1782653443000,-183.46800702,0.00023721,2]
[426596087,1782653443000,-454.58204241,0.00023462,2]
[426596085,1782653443000,-454.58204241,0.00023188,2]
[426596078,1782653443000,-428.0,0.00023,2]
[426596089,1782653443000,-1500.0,0.00023462,2]
[426596082,1782653443000,-153.0,0.00023,2]
[426596091,1782653443000,-202.0652273,0.00023721,2]
[426596083,1782653443000,-866.0,0.00023,2]
[426596097,1782653443000,-150.09911208,0.00023721,2]
[426596080,1782653443000,-166.0,0.00023,2]
[426596100,1782653443000,-173.15774094,0.00023729,2]
[426596115,1782653443000,-345.83,0.0002411,2]
[426596103,1782653443000,-500.0,0.00024,2]
[426596102,1782653443000,-378.774,0.00023867,7]
[426596101,1782653443000,-454.58204241,0.00023736,2]
[426596106,1782653443000,-175.0,0.00024,2]
[426596105,1782653443000,-748.55488836,0.00024,2]
[426596107,1782653443000,-437.0,0.00024,2]
[426596109,1782653443000,-161.23341983,0.00024,2]
[426596116,1782653443000,-603.74,0.00024174,2]
[426596112,1782653443000,-1500.0,0.0002401,2]
[426596118,1782653443000,-358.81907126,0.00024218,2]
[426596119,1782653443000,-454.58204241,0.00024284,2]
[426596113,1782653443000,-500.0,0.00024087,2]
[426596110,1782653443000,-867.0,0.00024,2]
[426596117,1782653443000,-1206.15,0.00024174,2]
[426596104,1782653443000,-606.13920909,0.00024,2]
[426596157,1782653443000,-150.0,0.0002509,2]
[426596139,1782653443000,-956.05304609,0.000249,2]
[426596149,1782653443000,-357.3818004,0.00024981,2]
[426596177,1782653443000,-151.0,0.000258,2]
[426596196,1782653443000,-159.64822018,0.00025821,2]
[426596198,1782653443000,-478.40728521,0.00025821,2]
[426596187,1782653443000,-355.21241675,0.00025821,2]
[426596194,1782653443000,-536.07270059,0.00025821,2]
[426596191,1782653443000,-495.29417705,0.00025821,2]
[426596186,1782653443000,-157.07205747,0.00025821,2]
[426596189,1782653443000,-253.26605627,0.00025821,2]
[426596197,1782653443000,-444.57506737,0.00025821,2]
[426596190,1782653443000,-243.67314914,0.00025821,2]
[426596193,1782653443000,-452.19590785,0.00025821,2]
[426596195,1782653443000,-160.26809834,0.00025821,2]
[426596188,1782653443000,-411.59893713,0.00025821,2]
[426596180,1782653443000,-157.44,0.0002581,7]
[426596199,1782653443000,-550.40402105,0.00025821,2]
[426596208,1782653443000,-422.51485695,0.00025832,2]
[426596212,1782653443000,-247.02,0.00026027,7]
[426596201,1782653443000,-451.9014489,0.00025821,2]
[426596202,1782653443000,-287.03462764,0.00025821,2]
[426596211,1782653443000,-454.58204253,0.00025928,2]
[426596206,1782653443000,-280.22569252,0.00025829,2]
[426596204,1782653443000,-519.47322283,0.00025829,2]
[426596207,1782653443000,-232.2541388,0.00025832,2]
[426596203,1782653443000,-590.75608747,0.00025821,2]
[426596205,1782653443000,-356.16528885,0.00025829,2]
[426596210,1782653443000,-1700.0,0.000259,9]
[426596209,1782653443000,-262.23555103,0.00025843,30]
[426596154,1782653443000,-346.31548189,0.00024989,2]
[426596200,1782653443000,-450.29733624,0.00025821,2]
[426596181,1782653443000,-211.15266271,0.00025821,2]
[426596192,1782653443000,-230.02974778,0.00025821,2]
[426596179,1782653443000,-157.43,0.0002581,7]
[426596185,1782653443000,-176.66070945,0.00025821,2]
[426596158,1782653443000,-150.0,0.0002509,2]
[426596150,1782653443000,-239.2036426,0.00024981,2]
[426596147,1782653443000,-247.64708853,0.00024981,2]
[426596151,1782653443000,-366.93601403,0.00024981,2]
[426596155,1782653443000,-178.08264442,0.00024989,2]
[426596156,1782653443000,-5031.49418703,0.00025,10]
[426596152,1782653443000,-300.19822416,0.00024981,2]
[426596160,1782653443000,-157.060907,0.00025256,2]
[426596163,1782653443000,-191.06811944,0.00025397,2]
[426596170,1782653443000,-500.0,0.00025799,2]
[426596164,1782653443000,-262.23555103,0.00025553,30]
[426596161,1782653443000,-262.23555103,0.00025263,14]
[426596159,1782653443000,-454.58204241,0.00025106,2]
[426596167,1782653443000,-156.02381534,0.000257,2]
[426596148,1782653443000,-226.09795393,0.00024981,2]
[426596183,1782653443000,-365.09145686,0.00025821,2]
[426596162,1782653443000,-454.58204241,0.0002538,2]
[426596171,1782653443000,-500.0,0.00025799,2]
[426596166,1782653443000,-150.0,0.00025675,7]
[426596168,1782653443000,-281.34111453,0.000257,4]
[426596169,1782653443000,-151.0,0.00025797,7]
[426596176,1782653443000,-151.0,0.000258,2]
[426596178,1782653443000,-151.0,0.000258,2]
[426596184,1782653443000,-229.82680135,0.00025821,2]
[426596165,1782653443000,-454.58204241,0.00025654,2]
[426596173,1782653443000,-704331.08492892,0.000258,2]
[426596182,1782653443000,-206.35769351,0.00025821,2]
[426596174,1782653443000,-151.0,0.000258,2]
[426596172,1782653443000,-500.0,0.00025799,2]
[426596235,1782653444000,-506.53211255,0.00026381,2]
[426596233,1782653444000,-617.3984057,0.00026381,2]
[426596244,1782653444000,-222.28753369,0.00026381,2]
[426596230,1782653444000,-311.72619887,0.00026381,2]
[426596229,1782653444000,-174.81990942,0.00026381,2]
[426596237,1782653444000,-742.94126558,0.00026381,2]
[426596246,1782653444000,-600.39644832,0.00026381,2]
[426596227,1782653444000,-222.0306946,0.00026381,2]
[426596236,1782653444000,-487.34629829,0.00026381,2]
[426596240,1782653444000,-213.9414715,0.00026381,2]
[426596252,1782653444000,-295.37804373,0.00026381,2]
[426596250,1782653444000,-574.06925529,0.00026381,2]
[426596232,1782653444000,-532.81862512,0.00026381,2]
[426596238,1782653444000,-460.05949555,0.00026381,2]
[426596231,1782653444000,-399.47393589,0.00026381,2]
[426596217,1782653444000,-241.65419928,0.00026381,2]
[426596226,1782653444000,-230.20183412,0.00026381,2]
[426596220,1782653444000,-428.11548402,0.00026381,2]
[426596221,1782653444000,-245.87417169,0.00026381,2]
[426596218,1782653444000,-422.30532542,0.00026381,2]
[426596223,1782653444000,-430.41819537,0.00026381,2]
[426596219,1782653444000,-412.71538702,0.00026381,2]
[426596222,1782653444000,-547.63718529,0.00026381,2]
[426596216,1782653444000,-417.0,0.0002619,2]
[426596215,1782653444000,-150.0,0.00026136,5]
[426596213,1782653444000,-180.20999459,0.00026111,2]
[426596225,1782653444000,-407.13594905,0.00026381,2]
[426596224,1782653444000,-353.32141889,0.00026381,2]
[426596214,1782653444000,-262.23555103,0.00026133,60]
[426596228,1782653444000,-314.14411494,0.00026381,2]
[426596243,1782653444000,-319.29644036,0.00026381,2]
[426596234,1782653444000,-808.26090921,0.00026381,2]
[426596248,1782653444000,-602.5352652,0.00026381,2]
[426596273,1782653444000,-500.0,0.00026799,2]
[426596268,1782653444000,-184.20775577,0.00026409,2]
[426596267,1782653444000,-225.77246427,0.00026408,2]
[426596239,1782653444000,-678.29386178,0.00026381,2]
[426596269,1782653444000,-173.27296357,0.00026409,2]
[426596275,1782653444000,-500.0,0.00026799,2]
[426596276,1782653444000,-500.0,0.00026799,2]
[426596274,1782653444000,-500.0,0.00026799,2]
[426596277,1782653444000,-645251.73334485,0.000268,2]
[426596270,1782653444000,-216.04762719,0.0002649,2]
[426596266,1782653444000,-7860.41452025,0.000264,2]
[426596271,1782653444000,-500.0,0.00026799,2]
[426596262,1782653444000,-406.07652979,0.00026391,2]
[426596260,1782653444000,-287.07101529,0.0002639,2]
[426596258,1782653444000,-534.24793327,0.0002639,2]
[426596272,1782653444000,-500.0,0.00026799,2]
[426596259,1782653444000,-428.14401409,0.0002639,2]
[426596257,1782653444000,-230.84049707,0.0002639,2]
[426596249,1782653444000,-401.62501627,0.00026381,2]
[426596241,1782653444000,-714.76360079,0.00026381,2]
[426596245,1782653444000,-717.61092781,0.00026381,2]
[426596242,1782653444000,-320.53619669,0.00026381,2]
[426596247,1782653444000,-733.87202806,0.00026381,2]
[426596263,1782653444000,-464.50827761,0.00026393,2]
[426596254,1782653444000,-150.92393092,0.0002639,2]
[426596256,1782653444000,-234.73755822,0.0002639,2]
[426596255,1782653444000,-223.20322271,0.0002639,2]
[426596265,1782653444000,-191.06811944,0.00026397,2]
[426596278,1782653444000,-70.02393256,0.000206,2]
[426596264,1782653444000,-633.77228543,0.00026393,2]
[426596253,1782653444000,-692.63096377,0.0002639,2]
[426596261,1782653444000,-560.45138504,0.0002639,2]
[426596280,1782653445000,-166.18445324,0.00021,2]
[426596279,1782653445000,-105.81492794,0.000206,2]
[426596282,1782653445000,-18207.89538367,0.000268,2]
[426596284,1782653445000,-430.49270949,0.000268,2]
[426596283,1782653445000,-100.17005955,0.000268,2]
[426596281,1782653445000,-269.90576588,0.000268,2]
[426596287,1782653543000,6888.0,0.0003734,120]
[426596288,1782653543000,183.87564323,0.0003734,120]
[426596286,1782653543000,168.3888056,0.0003734,120]
[426596290,1782653544000,527.23366831,0.0003734,120]
[426596291,1782653544000,162.80317902,0.0003734,120]
[426596289,1782653544000,565.69682278,0.0003734,120]
[426596292,1782653544000,168.55510738,0.0003734,120]
[426596294,1782653544000,793.20591386,0.0003734,120]
[426596293,1782653544000,181.85440002,0.0003734,120]
[426596295,1782653560000,500.0,0.0003734,120]
[426596299,1782653682000,1249.0,0.00037344,120]
[426596301,1782653697000,180.18,0.00029956,120]
[426596300,1782653697000,180.18,0.00026628,120]
[426596306,1782654039000,214.66,0.00030246,120]
[426596305,1782654039000,214.66,0.00027726,120]
[426596307,1782654055000,-531.83477087,0.000132,2]
[426596315,1782654302000,500.0,0.00037336,120]
[426596314,1782654302000,500.0,0.00037336,120]
[426596317,1782654303000,500.0,0.00037336,120]
[426596316,1782654303000,500.0,0.00037336,120]
[426596319,1782654303000,500.0,0.00037336,120]
[426596318,1782654303000,500.0,0.00037336,120]
[426596322,1782654304000,500.0,0.00037336,120]